bitfinex/quotes_ETHUSD_20260214
["timestamp","ask_amount","ask_price","bid_price","bid_amount"]
[1771110242133,0.35772428,2091.0,2090.4,0.19024219]
[1771110242533,0.35772428,2091.0,2090.6,0.19024219]
[1771110242768,1.68108562,2091.5,2090.6,0.19024219]
[1771110243135,0.35381912,2091.6,2090.7,30.0]
[1771110243359,0.35381912,2091.6,2090.8,0.19024219]
[1771110243937,0.35381912,2091.6,2091.0,0.19024219]
[1771110244136,2.17082915,2092.0,2091.0,0.19024219]
[1771110244467,0.48576889,2091.9,2091.1,1.19554301]
[1771110244772,0.48576889,2091.9,2090.4,3.23]
[1771110245088,0.48576889,2091.7,2090.2,4.78413774]
[1771110245370,1.68506026,2092.0,2090.1,1.19605779]
[1771110245371,0.48576889,2091.5,2090.1,4.78438151]
[1771110245666,0.48576889,2091.3,2090.1,1.19611501]
[1771110245834,0.97576889,2091.3,2090.2,30.0]
[1771110246035,0.97576889,2091.3,2090.2,0.19024219]
[1771110246436,1.55074943,2091.4,2090.4,0.19024219]
[1771110246658,1.55074943,2091.4,2090.3,31.19600057]
[1771110246659,0.35534777,2091.4,2090.6,30.0]
[1771110246846,0.35534777,2091.4,2090.6,23.86]
[1771110248668,0.35534777,2091.4,2090.7,1.19577175]
[1771110249356,0.84111666,2091.4,2090.7,1.19577175]
[1771110249569,2.03649746,2091.4,2090.7,1.19577175]
[1771110250866,2.03649746,2091.4,2090.6,4.783087]
[1771110251873,0.48576889,2091.3,2090.6,4.783087]
[1771110254767,1.68121538,2091.3,2090.6,4.783087]
[1771110255845,1.19544649,2091.3,2090.6,4.783087]
[1771110256167,0.47116473,2091.2,2090.6,4.783087]
[1771110256668,0.35534777,2091.4,2090.7,0.19024219]
[1771110256841,0.35534777,2091.4,2090.8,30.19024219]
[1771110257043,0.35534777,2091.4,2090.8,0.19024219]
[1771110258262,0.47116473,2091.8,2090.8,0.19024219]
[1771110258864,0.47116473,2091.8,2090.5,2.043]
[1771110258865,0.47116473,2091.7,2090.5,2.043]
[1771110259065,0.47116473,2091.7,2090.5,1.19582894]
[1771110261070,1.19525721,2091.6,2090.5,1.19582894]
[1771110261271,0.47116473,2091.5,2090.5,1.19582894]
[1771110263375,0.47116473,2091.3,2090.2,1.19605779]
[1771110263550,0.47116473,2091.2,2090.2,1.19605779]
[1771110265372,0.47116473,2091.0,2090.1,4.78432228]
[1771110265752,0.47116473,2090.8,2090.1,4.78432228]
[1771110267769,1.66688264,2090.8,2090.1,4.78432228]
[1771110268483,0.47116473,2090.7,2090.1,4.78432228]
[1771110270063,0.47116473,2090.7,2090.1,1.19611501]
[1771110270664,0.47116473,2090.7,2090.1,0.94611501]
[1771110272192,1.19570121,2090.9,2090.1,0.94611501]
[1771110272370,0.47116473,2091.4,2090.3,30.0]
[1771110272703,0.47116473,2091.4,2090.2,30.0]
[1771110273391,0.5,2091.3,2090.2,30.0]
[1771110275983,0.5,2091.2,2090.4,4.648]
[1771110276180,0.5,2091.2,2090.5,2.048]
[1771110277201,0.5,2091.6,2090.5,2.048]
[1771110277380,0.5,2091.6,2090.6,30.0]
[1771110277902,0.5,2091.6,2090.7,1.19577175]
[1771110278074,0.5,2091.6,2090.8,30.0]
[1771110278971,0.5,2091.6,2090.9,2.05]
[1771110279466,1.69525962,2091.6,2090.9,2.05]
[1771110279709,0.5,2091.5,2090.3,1.19600057]
[1771110280187,0.5,2091.3,2090.3,1.19600057]
[1771110280902,0.5,2091.2,2090.3,1.19600057]
[1771110283206,0.5,2091.0,2090.3,1.19600057]
[1771110283801,0.5,2091.0,2090.2,4.10801663]
[1771110286189,1.19565737,2090.9,2090.2,4.10801663]
[1771110286377,0.5,2090.8,2090.2,4.10801663]
[1771110287210,0.5,2091.0,2090.2,4.10801663]
[1771110287509,0.5,2091.3,2090.3,30.0]
[1771110287884,0.5,2091.3,2090.2,1.19601663]
[1771110288310,0.5,2091.1,2090.1,1.19611501]
[1771110291212,0.5,2091.1,2090.0,4.78461233]
[1771110291213,0.5,2090.9,2089.9,1.19722948]
[1771110294218,0.5,2090.7,2089.9,1.19722948]
[1771110297206,1.19582894,2090.6,2089.9,1.19722948]
[1771110297408,0.5,2090.5,2089.9,1.19722948]
[1771110300800,0.5,2090.7,2090.0,10.57]
[1771110300982,0.5,2091.4,2090.0,10.57]
[1771110301307,0.0011,2091.6,2090.6,30.0]
[1771110301511,0.0011,2091.6,2090.8,0.45768277]
[1771110301710,0.45653597,2091.5,2090.7,2.043]
[1771110302010,0.45653597,2091.4,2090.7,3.23873819]
[1771110302208,0.45763597,2091.4,2090.7,1.19573819]
[1771110302421,0.0011,2091.4,2090.7,1.19573819]
[1771110302589,0.0011,2091.4,2090.8,0.45768277]
[1771110303885,0.0011,2091.4,2090.9,1.19565737]
[1771110311028,0.0011,2091.4,2091.1,1.19554301]
[1771110314908,0.0011,2091.4,2090.9,1.19565737]
[1771110315620,0.45467949,2091.4,2090.9,1.19565737]
[1771110317306,0.45467949,2091.4,2090.7,1.19577175]
[1771110317623,0.0011,2091.4,2090.8,0.49766115]
[1771110319440,0.0011,2091.4,2090.9,1.19565737]
[1771110323146,0.0011,2091.4,2091.0,0.49766115]
[1771110323329,0.0011,2091.4,2091.2,0.49766115]
[1771110323730,0.0011,2091.4,2091.3,1.19542868]
[1771110324353,0.0011,2091.6,2091.3,1.19542868]
[1771110325756,0.0011,2091.6,2091.2,4.78187589]
[1771110325915,0.0011,2091.6,2091.2,5.27953704]
[1771110326539,0.0011,2091.6,2091.2,4.78187589]
[1771110327339,0.45467949,2091.6,2091.0,6.40554836]
[1771110327542,0.45357949,2091.5,2090.7,1.19577175]
[1771110327826,0.45357949,2091.3,2090.6,0.001]
[1771110328021,0.45357949,2091.3,2090.6,0.49866115]
[1771110328222,0.45357949,2091.5,2090.6,0.49866115]
[1771110328733,0.45357949,2091.5,2090.6,0.001]
[1771110329938,0.45357949,2091.3,2090.6,0.001]
[1771110335657,0.45357949,2091.5,2090.6,0.49866115]
[1771110335953,0.45357949,2091.5,2090.7,6.90320951]
[1771110336333,0.45357949,2091.5,2090.8,1.19571455]
[1771110336533,0.45357949,2091.5,2090.8,1.6933757]
[1771110337859,0.0011,2091.6,2090.9,6.40554836]
[1771110338158,0.0011,2091.6,2090.9,6.90320951]
[1771110338358,0.0011,2091.6,2091.0,1.19560019]
[1771110338958,0.0011,2091.6,2091.0,1.69326134]
[1771110340152,0.0011,2091.6,2091.0,1.19560019]
[1771110340359,0.0011,2091.6,2091.1,0.49737599]
[1771110340665,0.0011,2091.6,2091.2,1.19548584]
[1771110341247,0.0011,2091.6,2091.2,1.69286183]
[1771110341474,0.0011,2091.6,2091.3,0.49737599]
[1771110342174,0.0011,2091.6,2091.3,2.55037599]
[1771110343879,0.45189981,2091.6,2090.8,3.8]
[1771110344048,0.45189981,2091.6,2090.7,6.83895651]
[1771110344253,0.45189981,2091.6,2090.7,13.73037853]
[1771110344467,0.45189981,2091.6,2090.9,6.40554836]
[1771110344877,0.45189981,2091.6,2090.8,0.48587366]
[1771110345968,0.45189981,2091.6,2090.9,1.19565737]
[1771110346878,0.45079981,2091.5,2090.9,1.19565737]
[1771110348157,0.45079981,2091.5,2090.7,1.19577175]
[1771110348890,0.45079981,2091.4,2090.7,1.19577175]
[1771110350479,1.19538909,2091.4,2090.7,1.19577175]
[1771110350680,0.45079981,2091.3,2090.7,1.19577175]
[1771110351990,0.45079981,2091.3,2090.6,1.19678395]
[1771110352696,0.45079981,2091.3,2090.6,0.48687366]
[1771110352990,0.45079981,2091.5,2090.7,30.0]
[1771110353170,0.0011,2091.6,2090.8,0.48587366]
[1771110353366,0.45189981,2091.6,2090.8,0.48587366]
[1771110353778,0.45189981,2091.6,2090.6,0.001]
[1771110353779,0.45079981,2091.5,2090.6,0.001]
[1771110353988,0.45079981,2091.5,2090.6,2.032]
[1771110355185,1.19537152,2091.4,2090.7,1.19577175]
[1771110355390,0.45079981,2091.3,2090.7,1.19577175]
[1771110369509,0.45079981,2091.2,2090.7,1.19577175]
[1771110371796,0.45079981,2091.4,2090.8,0.48587366]
[1771110372116,0.0011,2091.6,2090.8,0.48587366]
[1771110372319,0.45189981,2091.6,2090.8,0.48587366]
[1771110373915,0.45189981,2091.6,2090.9,1.68483009]
[1771110375001,0.45189981,2091.6,2090.8,4.78262948]
[1771110375002,0.47207491,2091.5,2090.8,1.19567526]
[1771110376623,0.47207491,2091.4,2090.8,0.48917272]
[1771110376919,0.47317491,2091.6,2090.8,0.48917272]
[1771110377611,1.66844501,2091.6,2090.8,0.48917272]
[1771110377807,0.47207491,2091.5,2090.8,0.48917272]
[1771110378634,0.47207491,2091.5,2090.9,1.19565737]
[1771110380219,0.47207491,2091.5,2090.9,1.68483009]
[1771110381944,0.47207491,2091.4,2090.8,1.19567286]
[1771110382513,0.47207491,2091.4,2090.6,2.059]
[1771110382706,1.66748915,2091.4,2090.6,3.25479154]
[1771110382912,0.47207491,2091.3,2090.6,3.25479154]
[1771110383620,0.0011,2091.6,2090.7,0.48917272]
[1771110385043,0.47317491,2091.6,2090.9,0.48917272]
[1771110387954,0.47317491,2091.6,2091.0,1.19560019]
[1771110389015,1.66843796,2091.6,2091.0,1.19560019]
[1771110390134,0.0011,2091.6,2091.0,0.48917272]
[1771110390344,0.47317491,2091.6,2090.8,0.48917272]
[1771110390847,1.66843384,2091.6,2090.8,0.48917272]
[1771110391031,0.47317491,2091.6,2090.8,0.48917272]
[1771110391422,0.0011,2091.6,2090.9,0.48917272]
[1771110392142,0.0011,2091.6,2091.1,0.48917272]
[1771110392737,0.0011,2091.6,2091.2,0.48917272]
[1771110392933,0.0011,2091.6,2091.3,0.48917272]
[1771110394049,0.0011,2091.7,2091.3,0.48917272]
[1771110394224,0.0011,2091.8,2091.5,1.68448708]
[1771110394431,0.0011,2092.0,2091.7,0.48917272]
[1771110394959,0.0011,2092.0,2091.5,1.19531436]
[1771110394960,0.0011,2092.3,2091.9,0.48917272]
[1771110395447,0.0011,2092.3,2091.2,1.19542868]
[1771110395448,0.47207491,2092.2,2091.2,1.19542868]
[1771110395622,0.47207491,2092.2,2091.3,2.059]
[1771110396041,0.47207491,2092.2,2091.3,2.54817272]
[1771110396257,0.47207491,2092.0,2091.2,1.19544458]
[1771110398758,0.47207491,2091.9,2091.1,5.27118315]
[1771110400254,0.49787239,2092.1,2091.3,0.47584254]
[1771110400557,0.49787239,2092.1,2091.1,1.19554301]
[1771110400558,0.49787239,2092.0,2091.1,1.19554301]
[1771110400722,0.49787239,2091.8,2091.1,1.19554301]
[1771110403572,1.68543094,2091.7,2091.1,1.19554301]
[1771110403778,1.68543094,2091.7,2091.0,6.84138993]
[1771110403779,1.68543094,2091.7,2091.0,3.25456266]
[1771110404482,0.49023087,2091.6,2091.0,2.059]
[1771110404777,0.49023087,2091.6,2091.0,3.2545991]
[1771110406840,1.19531436,2091.5,2091.0,3.2545991]
[1771110407376,1.68554523,2091.5,2091.0,0.001]
[1771110411080,0.49023087,2091.5,2091.0,0.001]
[1771110411395,1.19528456,2091.6,2091.0,0.001]
[1771110411893,1.19528456,2091.6,2091.0,1.19660019]
[1771110412390,0.5,2091.7,2091.1,0.48692947]
[1771110412569,1.19516604,2091.8,2091.1,0.48692947]
[1771110412774,1.68539691,2091.8,2091.1,0.48692947]
[1771110414996,1.68537796,2091.8,2091.2,1.19548584]
[1771110419722,1.703,2092.1,2091.3,0.48692947]
[1771110419992,0.49023087,2092.0,2091.3,0.48692947]
[1771110420299,0.0011,2092.3,2091.3,0.48692947]
[1771110420602,0.0011,2092.3,2091.9,0.48692947]
[1771110420974,0.0011,2092.4,2092.1,0.48692947]
[1771110421298,0.0011,2092.5,2092.3,1.6817868]
[1771110421702,0.49133087,2092.5,2091.7,5.26766417]
[1771110421900,0.49133087,2092.5,2091.7,4.7807347]
[1771110422774,0.49133087,2092.5,2091.8,0.48692947]
[1771110423175,0.49133087,2092.5,2091.9,1.1950858]
[1771110423474,0.0011,2092.5,2091.9,1.68201527]
[1771110423674,0.49133087,2092.5,2091.9,1.1950858]
[1771110423887,1.68608795,2092.5,2091.9,1.1950858]
[1771110424603,1.68608795,2092.5,2091.6,6.836023]
[1771110424604,0.49023087,2092.4,2091.6,1.1952222]
[1771110425602,1.19585708,2092.5,2091.7,0.48692947]
[1771110425603,0.0011,2092.5,2091.7,0.48692947]
[1771110426102,0.49023087,2092.4,2091.6,1.1952222]
[1771110426303,0.49023087,2092.4,2091.5,2.055]
[1771110426598,0.49023087,2092.4,2091.5,3.25031403]
[1771110426799,0.49023087,2092.4,2091.5,2.055]
[1771110427708,0.49023087,2092.2,2091.5,3.25031163]
[1771110430014,1.68520242,2092.1,2091.5,3.25031163]
[1771110430308,1.68520242,2092.1,2091.3,1.19539844]
[1771110432688,0.49023087,2092.0,2091.3,1.19539844]
[1771110434182,1.1950858,2091.9,2091.3,1.19539844]
[1771110434382,1.68007682,2091.9,2091.2,2.54337724]
[1771110434712,1.68007682,2091.9,2091.2,0.861]
[1771110434914,0.48499102,2091.8,2091.2,0.861]
[1771110435486,1.1950858,2091.9,2091.2,2.54739685]
[1771110436386,1.68006275,2092.0,2091.2,2.54739685]
[1771110437406,1.19507173,2092.0,2091.3,0.49091479]
[1771110437984,1.19501328,2092.1,2091.3,0.49091479]
[1771110438702,1.6800043,2092.1,2091.4,1.19537152]
[1771110440910,3.37588207,2092.3,2091.5,0.49091479]
[1771110441116,0.48499102,2092.2,2091.5,0.49091479]
[1771110442018,0.48499102,2092.2,2091.4,1.19537152]
[1771110442523,0.48499102,2092.2,2091.2,1.19545595]
[1771110443022,0.48499102,2092.0,2091.1,3.73341377]
[1771110444319,0.48499102,2092.0,2091.2,0.49091479]
[1771110444623,1.19497155,2092.1,2091.2,0.49091479]
[1771110444923,1.19495796,2092.2,2091.4,0.49091479]
[1771110445112,1.67994898,2092.2,2091.4,0.49091479]
[1771110445627,2.89089866,2092.3,2091.4,0.49091479]
[1771110445991,3.37588968,2092.3,2091.4,0.49091479]
[1771110446800,2.18099102,2092.3,2091.6,0.49091479]
[1771110447125,12.00112493,2092.5,2091.6,0.49091479]
[1771110447126,1.68085348,2092.5,2091.6,0.49091479]
[1771110447622,0.48609102,2092.5,2091.6,0.49091479]
[1771110448005,0.0011,2092.5,2091.8,0.49091479]
[1771110448205,1.68083935,2092.5,2091.8,0.49091479]
[1771110448402,1.68083935,2092.5,2091.6,0.49091479]
[1771110449722,1.68083935,2092.5,2091.6,1.68613548]
[1771110449723,0.48499102,2092.4,2091.6,1.68613548]
[1771110449908,0.48499102,2092.4,2091.6,1.19522069]
[1771110450900,0.48499102,2092.4,2091.5,1.19527737]
[1771110451128,0.48499102,2092.4,2091.4,4.99533672]
[1771110451805,0.48499102,2092.2,2091.4,4.99533672]
[1771110452119,0.48499102,2092.2,2091.4,1.19533672]
[1771110457737,1.67996257,2092.1,2091.4,1.19533672]
[1771110459720,0.48499102,2092.0,2091.2,1.19544064]
[1771110461311,0.48499102,2092.0,2091.2,1.68615896]
[1771110462948,1.69151346,2091.9,2091.2,1.68615896]
[1771110464957,0.46206496,2091.8,2091.1,2.048]
[1771110465117,0.46206496,2091.8,2091.1,0.001]
[1771110467336,1.65726503,2091.7,2091.1,0.001]
[1771110467530,0.46206496,2091.6,2091.1,0.001]
[1771110469024,0.46206496,2091.5,2091.1,0.001]
[1771110470009,0.46206496,2091.3,2091.0,0.001]
[1771110470935,0.46206496,2091.2,2090.8,0.001]
[1771110472447,1.19554301,2091.1,2090.8,0.001]
[1771110472649,1.65758652,2091.2,2090.8,0.001]
[1771110472855,1.19552156,2091.2,2090.8,0.001]
[1771110473926,1.689,2091.3,2090.8,0.49009411]
[1771110474125,0.46206496,2091.7,2090.8,0.49009411]
[1771110474456,0.46206496,2091.6,2090.8,0.49009411]
[1771110476360,1.19531436,2091.5,2090.9,1.19565737]
[1771110476732,1.19531436,2091.5,2090.9,1.68475148]
[1771110477135,1.19529055,2091.6,2091.0,0.48909411]
[1771110477328,2.88324438,2091.7,2091.0,0.48909411]
[1771110478941,2.88324438,2091.7,2091.1,1.19554301]
[1771110479330,3.34524846,2091.8,2091.1,1.19554301]
[1771110479730,3.34524846,2091.8,2091.1,1.68463712]
[1771110480432,3.34524846,2091.8,2091.0,4.78221112]
[1771110480433,0.46206496,2091.7,2091.0,1.19557319]
[1771110480633,0.46206496,2091.7,2091.0,1.6846673]
[1771110480829,1.688,2091.8,2091.1,0.48909411]
[1771110481037,1.688,2091.8,2091.3,0.48909411]
[1771110481239,1.19509895,2091.9,2091.3,0.48909411]
[1771110483362,1.19509519,2091.9,2091.4,1.19537152]
[1771110483663,0.0011,2092.0,2091.5,0.48909411]
[1771110485563,0.0011,2092.0,2091.7,0.48909411]
[1771110488640,0.0011,2092.0,2091.7,1.68425266]
[1771110488852,0.0011,2092.0,2091.6,1.1952062]
[1771110489456,0.0011,2092.0,2091.5,1.68437473]
[1771110490343,0.0011,2092.0,2091.5,1.19528062]
[1771110490974,0.0011,2092.0,2091.4,5.27054642]
[1771110491569,0.0011,2092.0,2091.4,4.78145231]
[1771110491760,0.0011,2092.0,2091.6,0.48909411]
[1771110493076,0.0011,2092.0,2091.7,1.19520007]
[1771110494347,0.0011,2092.0,2091.7,1.66353849]
[1771110504755,0.0011,2092.0,2091.7,1.19520007]
[1771110506706,0.0011,2092.0,2091.7,1.66353849]
[1771110508099,0.0011,2092.2,2091.7,1.66353849]
[1771110508487,0.0011,2092.3,2091.9,0.46833842]
[1771110510581,0.0011,2092.3,2092.0,1.19502868]
[1771110511806,0.0011,2092.3,2092.0,1.6633671]
[1771110513381,0.0011,2092.5,2092.0,1.6633671]
[1771110515111,0.47989559,2092.4,2091.8,1.19509674]
[1771110517131,0.47989559,2092.2,2091.7,3.23215087]
[1771110519031,0.47989559,2092.1,2091.7,2.037]
[1771110519201,0.47989559,2092.1,2091.6,1.19521339]
[1771110519202,0.47989559,2092.1,2091.5,3.8]
[1771110519402,0.47989559,2092.1,2091.3,6.82858818]
[1771110519624,0.47989559,2092.1,2091.3,7.2969266]
[1771110520536,0.46455897,2092.3,2091.7,0.45585781]
[1771110521535,0.46455897,2092.3,2091.8,1.19514293]
[1771110523316,1.65477615,2092.5,2091.8,1.66198753]
[1771110523822,0.4589056,2092.4,2091.8,1.66198753]
[1771110524336,0.0011,2092.5,2091.8,1.66198753]
[1771110524534,0.4600056,2092.5,2091.8,1.66198753]
[1771110525729,0.4600056,2092.5,2091.9,0.4668446]
[1771110525910,1.65475669,2092.5,2091.9,0.4668446]
[1771110526119,0.4600056,2092.5,2091.8,1.66198753]
[1771110526309,0.4600056,2092.5,2091.9,0.4668446]
[1771110527838,0.4600056,2092.5,2092.0,1.19502868]
[1771110529839,0.4600056,2092.5,2091.8,1.19514293]
[1771110530241,0.4600056,2092.5,2091.8,1.66198753]
[1771110533148,0.4589056,2092.4,2091.6,1.19525721]
[1771110533330,0.4589056,2092.4,2091.6,1.66210181]
[1771110534242,0.4589056,2092.4,2091.6,1.19525721]
[1771110535151,0.0011,2092.5,2091.7,0.4668446]
[1771110535547,0.4600056,2092.5,2091.7,0.4668446]
[1771110535748,1.65475316,2092.5,2091.7,0.4668446]
[1771110537331,1.65475316,2092.5,2091.8,1.66198753]
[1771110539051,0.4600056,2092.5,2091.8,1.66198753]
[1771110540634,1.65475348,2092.5,2091.8,1.66198753]
[1771110540931,0.4589056,2092.4,2091.8,1.66198753]
[1771110541357,0.4589056,2092.4,2091.6,0.4668446]
[1771110541557,0.4589056,2092.4,2091.6,1.19521862]
[1771110542169,0.4589056,2092.4,2091.5,0.001]
[1771110542332,0.4589056,2092.2,2091.5,1.19630553]
[1771110542734,1.65387715,2092.1,2091.5,0.001]
[1771110543031,0.4589056,2092.0,2091.5,0.001]
[1771110544753,0.4589056,2091.8,2091.5,0.001]
[1771110546642,0.4589056,2091.8,2091.3,0.001]
[1771110546844,0.4589056,2091.6,2091.3,0.001]
[1771110549557,0.4589056,2091.5,2091.3,0.001]
[1771110551556,1.65427712,2091.4,2091.3,0.001]
[1771110553658,0.4589056,2091.4,2091.3,0.001]
[1771110553866,1.67490318,2091.6,2091.3,0.001]
[1771110555380,0.47960253,2091.5,2091.3,0.001]
[1771110555576,2.86723657,2091.7,2091.3,0.001]
[1771110555780,0.47960253,2091.6,2091.3,0.001]
[1771110557053,0.47960253,2091.6,2091.0,0.001]
[1771110557783,0.47960253,2091.4,2091.0,0.001]
[1771110559073,2.15560253,2091.3,2091.0,0.001]
[1771110559473,0.47960253,2091.2,2091.0,0.001]
[1771110560169,1.19554301,2091.1,2091.0,0.001]
[1771110561422,1.19554301,2091.1,2090.8,0.001]
[1771110561696,0.47960253,2091.0,2090.6,0.001]
[1771110561896,1.19552728,2091.2,2090.6,1.66518791]
[1771110562274,1.67512981,2091.2,2090.6,1.66518791]
[1771110562802,1.67512981,2091.2,2090.6,0.46936427]
[1771110563383,1.67512981,2091.2,2090.6,1.66519196]
[1771110566100,0.47960253,2091.1,2090.6,0.001]
[1771110566781,2.16060253,2091.2,2090.6,1.19681512]
[1771110567186,2.16060253,2091.2,2090.6,0.001]
[1771110567619,1.19554301,2091.1,2090.6,0.001]
[1771110568009,3.35612999,2091.2,2090.6,0.001]
[1771110572541,1.681,2091.2,2090.6,0.46936427]
[1771110573111,1.19543509,2091.3,2090.6,0.46936427]
[1771110573488,1.684,2091.4,2090.6,0.46936427]
[1771110573708,2.87937616,2091.4,2090.6,0.46936427]
[1771110573912,1.684,2091.4,2090.6,0.46936427]
[1771110574112,2.87937783,2091.4,2090.8,0.46836427]
[1771110575313,0.47960253,2091.3,2090.6,1.6651596]
[1771110575631,0.47960253,2091.3,2090.6,1.66519096]
[1771110576218,0.47960253,2091.3,2090.6,1.66519105]
[1771110576424,1.19548584,2091.2,2090.6,1.66519105]
[1771110576630,1.67508837,2091.2,2090.6,1.66519105]
[1771110580832,0.49164133,2091.1,2090.6,0.001]
[1771110581416,1.19548584,2091.2,2090.6,0.001]
[1771110581739,1.686,2091.1,2090.6,0.001]
[1771110581907,2.17764133,2091.1,2090.6,0.001]
[1771110583734,1.19560019,2091.0,2090.6,0.001]
[1771110583902,1.68978998,2091.0,2090.6,0.001]
[1771110584416,2.88158032,2091.1,2090.6,0.001]
[1771110584729,3.37577011,2091.1,2090.6,0.001]
[1771110585130,2.88158032,2091.1,2090.6,0.001]
[1771110585434,2.88154952,2091.1,2090.6,0.49461141]
[1771110587040,11.18791135,2091.4,2090.7,0.49361141]
[1771110587041,1.19541702,2091.4,2090.7,0.49361141]
[1771110587217,2.88341702,2091.4,2090.7,0.49361141]
[1771110587606,1.688,2091.6,2090.8,0.49361141]
[1771110587917,0.49418979,2091.5,2090.8,0.49361141]
[1771110590638,1.68955724,2091.5,2090.9,1.19565737]
[1771110591422,1.68955724,2091.5,2090.9,1.68926878]
[1771110592055,0.0011,2091.7,2091.0,0.49361141]
[1771110592226,1.19630476,2091.7,2091.0,0.49361141]
[1771110592553,0.49418979,2091.5,2090.8,3.71430279]
[1771110593141,1.19537152,2091.4,2090.8,3.71430279]
[1771110593448,1.19537152,2091.4,2090.8,3.22069138]
[1771110593649,1.19537152,2091.4,2090.9,0.49361141]
[1771110594148,2.05637152,2091.4,2090.9,0.49361141]
[1771110594343,0.861,2091.4,2090.9,0.49361141]
[1771110595353,0.861,2091.4,2091.0,1.6892116]
[1771110595656,2.05638307,2091.4,2090.9,1.19565206]
[1771110595948,0.861,2091.4,2090.9,1.19565206]
[1771110596151,0.861,2091.4,2090.9,1.68926347]
[1771110597747,0.861,2091.4,2090.8,10.60762948]
[1771110597748,0.49418979,2091.3,2090.8,3.8]
[1771110597955,0.49418979,2091.2,2090.6,2.029]
[1771110598131,3.74338754,2091.4,2090.4,0.001]
[1771110598132,0.49418979,2091.0,2090.4,0.001]
[1771110598336,0.49418979,2090.8,2090.2,0.001]
[1771110598559,1.687,2090.8,2090.0,0.49361141]
[1771110598759,0.49418979,2090.7,2089.9,1.33333816]
[1771110599059,0.49418979,2090.7,2089.9,2.52956598]
[1771110599355,0.49418979,2090.7,2090.0,0.49361141]
[1771110599656,1.19582894,2090.6,2090.0,0.49361141]
[1771110599856,1.19582894,2090.6,2090.0,1.68978212]
[1771110600159,1.19582894,2090.6,2090.0,1.68978144]
[1771110600362,2.88272023,2090.8,2090.1,0.49361141]
[1771110600569,0.49418979,2090.7,2090.0,1.68977639]
[1771110601062,12.79718291,2090.5,2090.0,1.19616498]
[1771110601262,1.6898492,2090.9,2090.2,0.49361141]
[1771110601765,4.78242381,2091.0,2090.3,1.68961198]
[1771110602163,0.861,2090.9,2090.3,1.68961198]
[1771110602358,0.861,2090.9,2090.3,0.49361141]
[1771110604050,0.861,2090.9,2090.4,1.68955477]
[1771110604570,0.861,2090.9,2090.4,1.19594336]
[1771110604865,0.861,2090.9,2090.5,0.49361141]
[1771110605572,0.10458288,2090.9,2090.6,0.49361141]
[1771110605941,0.10458288,2090.9,2090.7,1.19577175]
[1771110607654,0.10458288,2090.9,2090.6,1.68939617]
[1771110608384,0.10324421,2090.9,2090.6,1.68939617]
[1771110608681,0.39493558,2091.1,2090.6,1.68939617]
[1771110608886,0.39493558,2091.1,2090.7,0.49361141]
[1771110610485,0.49528979,2091.7,2090.9,0.49361141]
[1771110610687,1.69049516,2091.7,2090.9,0.49361141]
[1771110611686,1.69049516,2091.7,2090.9,2.52461141]
[1771110612191,0.49418979,2091.6,2090.9,2.52461141]
[1771110612769,0.49418979,2091.5,2090.9,2.031]
[1771110612959,0.49418979,2091.5,2090.8,3.8]
[1771110613790,0.49418979,2091.5,2090.8,4.99571107]
[1771110613994,1.19531025,2091.6,2090.9,0.70190763]
[1771110615065,0.0011,2091.4,2091.0,1.19560019]
[1771110619201,0.0011,2091.4,2090.9,1.8975321]
[1771110621502,0.0011,2091.4,2090.9,1.19562447]
[1771110621693,0.72566158,2091.4,2090.8,1.1956783]
[1771110625486,0.0011,2091.4,2090.8,1.89758593]
[1771110628180,0.0011,2091.4,2090.8,1.1956783]
[1771110628388,0.0011,2091.4,2090.9,0.70190763]
[1771110629101,0.0011,2091.4,2091.1,0.70190763]
[1771110629417,0.0011,2091.6,2091.1,0.70190763]
[1771110629920,0.0011,2091.6,2091.0,2.037]
[1771110630916,0.72566158,2091.6,2090.9,1.19565133]
[1771110632415,0.0011,2091.6,2091.0,0.70190763]
[1771110633601,0.0011,2091.6,2091.1,1.89745064]
[1771110639732,0.72566158,2091.6,2091.0,4.99559078]
[1771110639916,0.72566158,2091.6,2091.0,5.69749841]
[1771110640228,0.0011,2091.6,2091.1,0.68878788]
[1771110641129,0.0011,2091.6,2091.2,6.40669531]
[1771110641434,0.0011,2091.7,2091.3,0.68878788]
[1771110644252,0.0011,2091.7,2091.2,6.40669531]
[1771110644542,0.67782862,2091.7,2091.1,3.8]
[1771110644744,0.67782862,2091.7,2091.1,4.99553095]
[1771110645417,0.67782862,2091.7,2091.1,1.19553095]
[1771110647160,0.0011,2091.7,2091.1,1.90506745]
[1771110654364,0.0011,2091.7,2091.1,0.7095365]
[1771110654559,0.67672862,2091.6,2091.0,4.9955954]
[1771110657151,1.87204298,2091.5,2091.0,1.1955954]
[1771110659666,0.67672862,2091.5,2091.0,1.1955954]
[1771110661071,1.87204652,2091.5,2090.9,3.24861237]
[1771110661268,0.67672862,2091.2,2090.8,0.001]
[1771110663978,0.67672862,2091.0,2090.8,0.001]
[1771110665971,1.87238599,2090.9,2090.8,0.001]
[1771110666882,1.87238599,2090.9,2090.5,0.001]
[1771110666883,0.67672862,2090.8,2090.5,0.001]
[1771110667082,0.67672862,2090.6,2090.4,0.001]
[1771110667695,2.86110442,2090.5,2090.4,0.001]
[1771110667894,4.73371919,2090.5,2090.4,0.001]
[1771110668270,1.87261477,2090.5,2090.4,0.001]
[1771110669198,1.87261477,2090.5,2089.8,1.68725312]
[1771110669199,0.67672862,2090.4,2089.8,0.491]
[1771110670099,1.87272919,2090.3,2089.8,0.491]
[1771110670603,0.67672862,2090.2,2089.8,0.491]
[1771110670801,0.67672862,2090.2,2089.8,0.001]
[1771110671171,0.67672862,2090.4,2089.8,1.19728256]
[1771110672600,1.87267579,2090.4,2089.8,1.19728256]
[1771110673080,0.65543017,2090.3,2089.8,0.001]
[1771110674280,1.85148796,2090.2,2089.8,0.001]
[1771110674715,0.65543017,2090.2,2089.8,0.001]
[1771110676418,1.85149305,2090.2,2089.8,0.001]
[1771110676914,0.65543017,2090.2,2089.8,0.001]
[1771110677116,1.19603626,2090.3,2089.8,0.001]
[1771110677295,1.85146643,2090.3,2089.8,0.001]
[1771110679212,0.65543017,2090.2,2089.8,0.001]
[1771110679802,0.65543017,2090.3,2089.8,0.001]
[1771110680692,1.85143417,2090.3,2089.8,0.001]
[1771110684717,0.65543017,2090.2,2089.8,0.001]
[1771110688304,0.65543017,2090.1,2089.8,0.001]
[1771110688518,0.65543017,2090.1,2089.6,0.001]
[1771110688709,0.65543017,2090.1,2089.6,0.002]